[Event "*** Titled Tuesday Blitz"]
[Site "Chess.com"]
[Date "2020.04.21"]
[Round "1"]
[White "BogdanDeac"]
[Black "YPradafah"]
[Result "1-0"]
[WhiteElo "2930"]
[BlackElo "2459"]
[TimeControl "180+1"]
[EndTime "10:07:28 PDT"]
[Termination "BogdanDeac won on time"]

1. Nf3 {[%clk 0:02:58.8]} 1... Nf6 {[%clk 0:02:57.8]} 2. c4 {[%clk 0:02:58]}
2... g6 {[%clk 0:02:55.9]} 3. Nc3 {[%clk 0:02:57.4]} 3... Bg7 {[%clk 0:02:54.6]}
4. g3 {[%clk 0:02:56.8]} 4... O-O {[%clk 0:02:48.2]} 5. Bg2 {[%clk 0:02:56.7]}
5... c6 {[%clk 0:02:48.7]} 6. d4 {[%clk 0:02:56.4]} 6... d5 {[%clk 0:02:48.8]}
7. Qb3 {[%clk 0:02:56.9]} 7... dxc4 {[%clk 0:02:42.6]} 8. Qxc4 {[%clk
0:02:56.4]} 8... Be6 {[%clk 0:02:37.8]} 9. Qd3 {[%clk 0:02:55.4]} 9... Na6
{[%clk 0:02:38.4]} 10. a3 {[%clk 0:02:51.2]} 10... c5 {[%clk 0:02:28.7]} 11. O-O
{[%clk 0:02:35.4]} 11... cxd4 {[%clk 0:02:01.6]} 12. Nxd4 {[%clk 0:02:31.6]}
12... Nc5 {[%clk 0:02:01.6]} 13. Nxe6 {[%clk 0:02:31.4]} 13... Qxd3 {[%clk
0:01:45.9]} 14. exd3 {[%clk 0:02:31]} 14... fxe6 {[%clk 0:01:46.5]} 15. Rd1
{[%clk 0:02:15.8]} 15... e5 {[%clk 0:01:42.7]} 16. Be3 {[%clk 0:02:12.8]} 16...
Nb3 {[%clk 0:01:40.7]} 17. Rab1 {[%clk 0:02:11.2]} 17... Rad8 {[%clk 0:01:21.4]}
18. Bxa7 {[%clk 0:02:05.9]} 18... Rd7 {[%clk 0:01:10.8]} 19. Be3 {[%clk
0:01:52.2]} 19... Nd4 {[%clk 0:01:08.5]} 20. Ne4 {[%clk 0:01:05.5]} 20... Ng4
{[%clk 0:00:54.7]} 21. Bxd4 {[%clk 0:00:37.5]} 21... Rxd4 {[%clk 0:00:55.6]} 22.
h3 {[%clk 0:00:34.1]} 22... Nh6 {[%clk 0:00:49.2]} 23. Nc5 {[%clk 0:00:31.6]}
23... Rc8 {[%clk 0:00:24.7]} 24. Ne6 {[%clk 0:00:27.7]} 24... Rd7 {[%clk
0:00:23]} 25. Rbc1 {[%clk 0:00:26.8]} 25... Rb8 {[%clk 0:00:19.9]} 26. Nc5
{[%clk 0:00:24.9]} 26... Rd4 {[%clk 0:00:18.2]} 27. Bxb7 {[%clk 0:00:21.9]}
27... Nf7 {[%clk 0:00:18]} 28. b4 {[%clk 0:00:20.7]} 28... Nd6 {[%clk
0:00:18.1]} 29. Be4 {[%clk 0:00:20.2]} 29... Nb5 {[%clk 0:00:14.2]} 30. a4
{[%clk 0:00:18.8]} 30... Nd6 {[%clk 0:00:13.7]} 31. b5 {[%clk 0:00:18.8]} 31...
Bh6 {[%clk 0:00:12.9]} 32. Rb1 {[%clk 0:00:17.2]} 32... Rc8 {[%clk 0:00:11.1]}
33. Ne6 {[%clk 0:00:14.3]} 33... Rxa4 {[%clk 0:00:10.8]} 34. Bd5 {[%clk
0:00:14.4]} 34... Kh8 {[%clk 0:00:10.3]} 35. b6 {[%clk 0:00:14.4]} 35... Rb8
{[%clk 0:00:10.8]} 36. b7 {[%clk 0:00:13.9]} 36... Ra2 {[%clk 0:00:10]} 37. Bxa2
{[%clk 0:00:13.2]} 1-0

[Event "*** Titled Tuesday Blitz"]
[Site "Chess.com"]
[Date "2020.04.21"]
[Round "1"]
[White "MFBerna"]
[Black "EvgenyRomanov"]
[Result "1-0"]
[WhiteElo "2353"]
[BlackElo "2616"]
[TimeControl "180+1"]
[EndTime "10:07:28 PDT"]
[Termination "MFBerna won by resignation"]

1. e4 {[%clk 0:02:59.5]} 1... c5 {[%clk 0:02:59.3]} 2. Nf3 {[%clk 0:02:54.2]}
2... Nc6 {[%clk 0:02:59.3]} 3. d4 {[%clk 0:02:53.7]} 3... cxd4 {[%clk
0:02:58.9]} 4. Nxd4 {[%clk 0:02:54.6]} 4... Nf6 {[%clk 0:02:59]} 5. Nc3 {[%clk
0:02:54.6]} 5... d6 {[%clk 0:02:59.5]} 6. Be2 {[%clk 0:02:53]} 6... e5 {[%clk
0:02:57.9]} 7. Nb3 {[%clk 0:02:53]} 7... Be7 {[%clk 0:02:56.8]} 8. O-O {[%clk
0:02:53.4]} 8... Be6 {[%clk 0:02:56]} 9. f4 {[%clk 0:02:53.7]} 9... exf4 {[%clk
0:02:49.1]} 10. Bxf4 {[%clk 0:02:50.4]} 10... O-O {[%clk 0:02:49]} 11. Kh1
{[%clk 0:02:47.9]} 11... Rc8 {[%clk 0:02:39.5]} 12. Nd4 {[%clk 0:02:42.1]} 12...
Nxd4 {[%clk 0:02:19.9]} 13. Qxd4 {[%clk 0:02:43]} 13... d5 {[%clk 0:02:19.8]}
14. e5 {[%clk 0:02:39.9]} 14... Nd7 {[%clk 0:02:16.4]} 15. Nxd5 {[%clk
0:02:18.5]} 15... Bxd5 {[%clk 0:01:57.7]} 16. Qxd5 {[%clk 0:02:19.4]} 16... Rxc2
{[%clk 0:01:57.7]} 17. Bd3 {[%clk 0:01:42.9]} 17... Rc5 {[%clk 0:01:55.5]} 18.
Qe4 {[%clk 0:01:40]} 18... g6 {[%clk 0:01:51.9]} 19. b4 {[%clk 0:01:26.9]} 19...
Rc3 {[%clk 0:01:42.6]} 20. Bc4 {[%clk 0:00:56]} 20... Nb6 {[%clk 0:01:31.8]} 21.
Bb3 {[%clk 0:00:50.6]} 21... Kg7 {[%clk 0:01:07]} 22. Rad1 {[%clk 0:00:45.8]}
22... Qc8 {[%clk 0:01:03.9]} 23. Bd2 {[%clk 0:00:33]} 23... Rc6 {[%clk
0:00:59.7]} 24. Qe3 {[%clk 0:00:25.4]} 24... Nc4 {[%clk 0:00:56.2]} 25. Qh6+
{[%clk 0:00:20.2]} 25... Kg8 {[%clk 0:00:56.2]} 26. Bc1 {[%clk 0:00:15]} 26...
b5 {[%clk 0:00:44.1]} 27. Rd5 {[%clk 0:00:13.9]} 27... a6 {[%clk 0:00:43]} 28.
a4 {[%clk 0:00:13.5]} 28... Qe6 {[%clk 0:00:40.8]} 29. axb5 {[%clk 0:00:11.4]}
29... Qxd5 {[%clk 0:00:36.7]} 30. bxc6 {[%clk 0:00:12.3]} 30... Qxc6 {[%clk
0:00:37.1]} 31. Qf4 {[%clk 0:00:12]} 31... Nb6 {[%clk 0:00:26.3]} 32. Bxf7+
{[%clk 0:00:11.8]} 32... Kh8 {[%clk 0:00:26.4]} 33. e6 {[%clk 0:00:10.2]} 33...
Nc4 {[%clk 0:00:25.4]} 34. Qxc4 {[%clk 0:00:06.3]} 34... Rxf7 {[%clk 0:00:19.7]}
35. exf7 {[%clk 0:00:02.7]} 35... Qf6 {[%clk 0:00:10.4]} 36. f8=Q+ {[%clk
0:00:03.6]} 36... Bxf8 {[%clk 0:00:08.8]} 37. Rxf6 {[%clk 0:00:04.1]} 1-0

[Event "*** Titled Tuesday Blitz"]
[Site "Chess.com"]
[Date "2020.04.21"]
[Round "1"]
[White "crescentmoon2411"]
[Black "Shazuli9878"]
[Result "1-0"]
[WhiteElo "2760"]
[BlackElo "2394"]
[TimeControl "180+1"]
[EndTime "10:07:29 PDT"]
[Termination "crescentmoon2411 won by resignation"]

1. e4 {[%clk 0:02:57.5]} 1... c6 {[%clk 0:02:59.2]} 2. d4 {[%clk 0:02:57.2]}
2... d5 {[%clk 0:03:00.1]} 3. exd5 {[%clk 0:02:57.7]} 3... cxd5 {[%clk 0:03:01]}
4. Bd3 {[%clk 0:02:57.9]} 4... Nf6 {[%clk 0:03:01.9]} 5. c3 {[%clk 0:02:57.5]}
5... Nc6 {[%clk 0:03:02.1]} 6. h3 {[%clk 0:02:53.5]} 6... g6 {[%clk 0:03:01.6]}
7. Nf3 {[%clk 0:02:52.7]} 7... Bg7 {[%clk 0:03:01.8]} 8. O-O {[%clk 0:02:51.9]}
8... O-O {[%clk 0:03:02.1]} 9. Bf4 {[%clk 0:02:38.2]} 9... Bf5 {[%clk
0:03:00.7]} 10. Be2 {[%clk 0:02:38.3]} 10... Rc8 {[%clk 0:02:56.3]} 11. Nbd2
{[%clk 0:02:37.9]} 11... Ne4 {[%clk 0:02:55.8]} 12. Re1 {[%clk 0:02:27.4]} 12...
Nxd2 {[%clk 0:02:54.8]} 13. Qxd2 {[%clk 0:02:25]} 13... Be4 {[%clk 0:02:54.9]}
14. Nh2 {[%clk 0:02:15.3]} 14... e5 {[%clk 0:02:48.9]} 15. dxe5 {[%clk
0:02:12.5]} 15... Nxe5 {[%clk 0:02:48.8]} 16. Rad1 {[%clk 0:02:05.3]} 16... Qa5
{[%clk 0:02:40.3]} 17. a3 {[%clk 0:01:55]} 17... Rfd8 {[%clk 0:02:38.3]} 18. Bf1
{[%clk 0:01:34.6]} 18... Nc4 {[%clk 0:02:32.8]} 19. Bxc4 {[%clk 0:01:22.4]}
19... dxc4 {[%clk 0:02:32]} 20. Qe3 {[%clk 0:01:19.9]} 20... Rxd1 {[%clk
0:02:28.5]} 21. Rxd1 {[%clk 0:01:20.8]} 21... Bd3 {[%clk 0:02:28.2]} 22. Re1
{[%clk 0:01:19.8]} 22... Qb5 {[%clk 0:02:27.5]} 23. Qd2 {[%clk 0:01:18]} 23...
Re8 {[%clk 0:02:26.8]} 24. Rxe8+ {[%clk 0:01:16.1]} 24... Qxe8 {[%clk
0:02:27.7]} 25. Nf3 {[%clk 0:01:16.2]} 25... b5 {[%clk 0:02:24.2]} 26. Be3
{[%clk 0:01:14]} 26... a5 {[%clk 0:02:18.4]} 27. Bd4 {[%clk 0:01:14.1]} 27...
Qe4 {[%clk 0:02:11]} 28. Bxg7 {[%clk 0:01:13.1]} 28... Kxg7 {[%clk 0:02:11.9]}
29. Qe3 {[%clk 0:01:08.4]} 29... Qb7 {[%clk 0:01:58.5]} 30. Nd4 {[%clk 0:01:05]}
30... b4 {[%clk 0:01:50.9]} 31. Qe5+ {[%clk 0:01:04.9]} 31... Kg8 {[%clk
0:01:43.7]} 32. Qxa5 {[%clk 0:01:04.4]} 32... bxc3 {[%clk 0:01:43.8]} 33. bxc3
{[%clk 0:01:00.3]} 33... Qb1+ {[%clk 0:01:39.7]} 34. Kh2 {[%clk 0:00:59.9]}
34... Qe1 {[%clk 0:01:39.3]} 35. Nf3 {[%clk 0:00:40.9]} 35... Qxf2 {[%clk
0:01:36.6]} 36. Qd8+ {[%clk 0:00:39.9]} 36... Kg7 {[%clk 0:01:34.6]} 37. Qd4+
{[%clk 0:00:39.6]} 37... Qxd4 {[%clk 0:01:34.5]} 38. Nxd4 {[%clk 0:00:40.5]}
38... Kf6 {[%clk 0:01:33.3]} 39. a4 {[%clk 0:00:37.3]} 39... Ke5 {[%clk
0:01:33.1]} 40. a5 {[%clk 0:00:36.2]} 40... Ke4 {[%clk 0:01:31.7]} 41. a6 {[%clk
0:00:33.1]} 41... Ke3 {[%clk 0:01:30.7]} 42. a7 {[%clk 0:00:29.4]} 42... Be4
{[%clk 0:01:29.7]} 43. g4 {[%clk 0:00:26.4]} 43... Kd3 {[%clk 0:01:27.8]} 44.
Nb5 {[%clk 0:00:26.2]} 44... g5 {[%clk 0:01:23.9]} 45. Kg3 {[%clk 0:00:26.1]}
45... h6 {[%clk 0:01:20.2]} 46. Kf2 {[%clk 0:00:24.8]} 46... Kd2 {[%clk
0:01:18.1]} 47. Nd6 {[%clk 0:00:24.1]} 47... Bd5 {[%clk 0:01:15.9]} 48. Nxc4+
{[%clk 0:00:24]} 48... Kxc3 {[%clk 0:01:16.2]} 49. Nb6 {[%clk 0:00:24.2]} 49...
Bc6 {[%clk 0:01:16.2]} 50. Ke3 {[%clk 0:00:23.3]} 50... Kb4 {[%clk 0:01:13.1]}
51. a8=Q {[%clk 0:00:21.7]} 51... Bxa8 {[%clk 0:01:12.7]} 52. Nxa8 {[%clk
0:00:22.6]} 52... Kc5 {[%clk 0:01:13.1]} 53. Ke4 {[%clk 0:00:22.8]} 53... Kd6
{[%clk 0:01:12.9]} 54. Kf5 {[%clk 0:00:23.1]} 54... Kd5 {[%clk 0:01:13.4]} 55.
Kf6 {[%clk 0:00:20]} 55... Ke4 {[%clk 0:01:12.7]} 56. Kxf7 {[%clk 0:00:20.5]}
56... Kf4 {[%clk 0:01:13.6]} 57. Kg6 {[%clk 0:00:20.9]} 57... Kg3 {[%clk
0:01:14.1]} 58. Kxh6 {[%clk 0:00:21]} 58... Kxh3 {[%clk 0:01:15]} 59. Kxg5
{[%clk 0:00:21.4]} 1-0

[Event "*** Titled Tuesday Blitz"]
[Site "Chess.com"]
[Date "2020.04.21"]
[Round "1"]
[White "KikaLaurincova"]
[Black "marcodobrikov"]
[Result "0-1"]
[WhiteElo "1983"]
[BlackElo "2498"]
[TimeControl "180+1"]
[EndTime "10:07:30 PDT"]
[Termination "marcodobrikov won by resignation"]

1. e4 {[%clk 0:03:00.6]} 1... c5 {[%clk 0:02:58.3]} 2. Nf3 {[%clk 0:03:00.3]}
2... d6 {[%clk 0:02:58.8]} 3. d4 {[%clk 0:02:59.9]} 3... cxd4 {[%clk 0:02:59.7]}
4. Nxd4 {[%clk 0:03:00.3]} 4... Nf6 {[%clk 0:03:00.6]} 5. Nc3 {[%clk 0:02:58.1]}
5... a6 {[%clk 0:03:01.3]} 6. h3 {[%clk 0:02:56.5]} 6... e6 {[%clk 0:03:00.8]}
7. g4 {[%clk 0:02:56.5]} 7... Be7 {[%clk 0:03:01]} 8. Bg2 {[%clk 0:02:56]} 8...
O-O {[%clk 0:03:01.1]} 9. O-O {[%clk 0:02:56.6]} 9... Nc6 {[%clk 0:02:57.4]} 10.
Be3 {[%clk 0:02:55.8]} 10... Bd7 {[%clk 0:02:42.3]} 11. f4 {[%clk 0:02:54.9]}
11... Nxd4 {[%clk 0:02:41.2]} 12. Bxd4 {[%clk 0:02:55.8]} 12... Bc6 {[%clk
0:02:42.1]} 13. Qd3 {[%clk 0:02:53]} 13... b5 {[%clk 0:02:42]} 14. Rad1 {[%clk
0:02:50.7]} 14... Qc7 {[%clk 0:02:28.8]} 15. e5 {[%clk 0:02:25.5]} 15... Bxg2
{[%clk 0:02:28.1]} 16. Kxg2 {[%clk 0:02:22.2]} 16... dxe5 {[%clk 0:02:25.5]} 17.
Bxe5 {[%clk 0:02:17.6]} 17... Qc6+ {[%clk 0:02:18.2]} 18. Qf3 {[%clk 0:02:17.8]}
18... Qxf3+ {[%clk 0:02:04.4]} 19. Rxf3 {[%clk 0:02:18.7]} 19... b4 {[%clk
0:02:04.6]} 20. Ne2 {[%clk 0:02:09.1]} 20... Rac8 {[%clk 0:02:04.6]} 21. c3
{[%clk 0:02:08.6]} 21... Nd5 {[%clk 0:01:59.3]} 22. cxb4 {[%clk 0:02:03.9]}
22... Rfd8 {[%clk 0:01:59.6]} 23. Nd4 {[%clk 0:02:01.6]} 23... Nxb4 {[%clk
0:01:56.4]} 24. a3 {[%clk 0:01:58.2]} 24... Nd5 {[%clk 0:01:55.6]} 25. Rfd3
{[%clk 0:00:38]} 25... Rd7 {[%clk 0:01:16.2]} 26. Ne2 {[%clk 0:00:22.6]} 26...
Rc2 {[%clk 0:01:13.1]} 27. R3d2 {[%clk 0:00:18.9]} 27... Rxd2 {[%clk 0:01:12.6]}
28. Rxd2 {[%clk 0:00:19.8]} 28... Ne3+ {[%clk 0:01:13.5]} 29. Kf2 {[%clk
0:00:16.3]} 29... Nxg4+ {[%clk 0:01:12]} 30. hxg4 {[%clk 0:00:16.4]} 30... Rxd2
{[%clk 0:01:12.1]} 31. Bd4 {[%clk 0:00:14.4]} 31... f6 {[%clk 0:01:03.6]} 32.
Ke3 {[%clk 0:00:14.4]} 32... Rd1 {[%clk 0:01:01.9]} 33. Nc3 {[%clk 0:00:10.4]}
33... Kf7 {[%clk 0:00:58.6]} 34. Ne4 {[%clk 0:00:08.7]} 34... Rb1 {[%clk
0:00:57]} 35. Bc3 {[%clk 0:00:08.3]} 35... a5 {[%clk 0:00:51.5]} 36. Nd2 {[%clk
0:00:08.1]} 36... Rg1 {[%clk 0:00:50.5]} 37. Kf3 {[%clk 0:00:07.3]} 37... a4
{[%clk 0:00:50.3]} 38. Nc4 {[%clk 0:00:07.4]} 38... h5 {[%clk 0:00:48.9]} 39.
gxh5 {[%clk 0:00:06.9]} 39... Rh1 {[%clk 0:00:48.5]} 40. Nb6 {[%clk 0:00:06]}
40... Bxa3 {[%clk 0:00:41.4]} 41. bxa3 {[%clk 0:00:04.3]} 41... Rh3+ {[%clk
0:00:41.2]} 42. Ke4 {[%clk 0:00:04.7]} 42... Rxc3 {[%clk 0:00:42.1]} 43. Nxa4
{[%clk 0:00:05.3]} 43... Rxa3 {[%clk 0:00:41.8]} 44. Nc5 {[%clk 0:00:05]} 44...
Rh3 {[%clk 0:00:41.5]} 45. Nd3 {[%clk 0:00:02.5]} 45... Rxh5 {[%clk 0:00:41.4]}
0-1

[Event "*** Titled Tuesday Blitz"]
[Site "Chess.com"]
[Date "2020.04.21"]
[Round "1"]
[White "Shant_Sargsyan"]
[Black "harvsp123"]
[Result "1-0"]
[WhiteElo "2986"]
[BlackElo "2471"]
[TimeControl "180+1"]
[EndTime "10:07:32 PDT"]
[Termination "Shant_Sargsyan won by resignation"]

1. d4 {[%clk 0:02:56.4]} 1... Nf6 {[%clk 0:02:58.3]} 2. Nf3 {[%clk 0:02:56.3]}
2... g6 {[%clk 0:02:58.5]} 3. g3 {[%clk 0:02:53.8]} 3... Bg7 {[%clk 0:02:58.5]}
4. Bg2 {[%clk 0:02:54.4]} 4... O-O {[%clk 0:02:58.5]} 5. O-O {[%clk 0:02:55]}
5... d5 {[%clk 0:02:51.2]} 6. c4 {[%clk 0:02:53.8]} 6... c6 {[%clk 0:02:51.1]}
7. cxd5 {[%clk 0:02:50.9]} 7... cxd5 {[%clk 0:02:52]} 8. Ne5 {[%clk 0:02:50.8]}
8... Bf5 {[%clk 0:02:48.9]} 9. Nc3 {[%clk 0:02:42]} 9... Ne4 {[%clk 0:02:48.5]}
10. Bf4 {[%clk 0:02:32.4]} 10... Nxc3 {[%clk 0:02:30.1]} 11. bxc3 {[%clk
0:02:31.8]} 11... Nc6 {[%clk 0:02:31]} 12. Nd3 {[%clk 0:02:23.6]} 12... Re8
{[%clk 0:02:03.6]} 13. Qb3 {[%clk 0:02:16.1]} 13... e5 {[%clk 0:01:40.9]} 14.
Nxe5 {[%clk 0:02:14]} 14... Nxe5 {[%clk 0:01:39.5]} 15. dxe5 {[%clk 0:02:13.3]}
15... Bxe5 {[%clk 0:01:39.4]} 16. Bxd5 {[%clk 0:02:03.9]} 16... Be6 {[%clk
0:01:02.8]} 17. Rad1 {[%clk 0:01:58.9]} 17... Qf6 {[%clk 0:00:33.7]} 18. Bxe5
{[%clk 0:01:54.3]} 18... Qxe5 {[%clk 0:00:34.6]} 19. e3 {[%clk 0:01:48.7]} 19...
Rac8 {[%clk 0:00:32.8]} 20. c4 {[%clk 0:01:44.8]} 20... b6 {[%clk 0:00:32]} 21.
Rd4 {[%clk 0:01:41.4]} 21... h5 {[%clk 0:00:31.1]} 22. Rfd1 {[%clk 0:01:38.2]}
22... Bg4 {[%clk 0:00:26.8]} 23. R1d2 {[%clk 0:01:30.1]} 23... Kg7 {[%clk
0:00:26.9]} 24. a4 {[%clk 0:01:19.4]} 24... Rc5 {[%clk 0:00:25.4]} 25. Qd3
{[%clk 0:01:14.2]} 25... Rec8 {[%clk 0:00:24.5]} 26. f4 {[%clk 0:01:06.2]} 26...
Qe7 {[%clk 0:00:23.7]} 27. Qc3 {[%clk 0:01:04.4]} 27... Qf6 {[%clk 0:00:22.9]}
28. e4 {[%clk 0:01:02.2]} 28... Kh7 {[%clk 0:00:21.6]} 29. e5 {[%clk 0:00:59.3]}
29... Qe7 {[%clk 0:00:21.5]} 30. Qb4 {[%clk 0:00:54.4]} 30... h4 {[%clk
0:00:21.6]} 31. Qc3 {[%clk 0:00:42.6]} 31... h3 {[%clk 0:00:22]} 32. Qe3 {[%clk
0:00:38.1]} 32... Qe8 {[%clk 0:00:16.4]} 33. f5 {[%clk 0:00:35.4]} 33... gxf5
{[%clk 0:00:14.5]} 34. Rxg4 {[%clk 0:00:27.6]} 34... fxg4 {[%clk 0:00:14.2]} 35.
Be4+ {[%clk 0:00:27.9]} 35... f5 {[%clk 0:00:12.6]} 36. Bxf5+ {[%clk 0:00:25]}
36... Kg8 {[%clk 0:00:12.5]} 37. Qg5+ {[%clk 0:00:24]} 37... Kf8 {[%clk
0:00:12.9]} 38. Qh6+ {[%clk 0:00:20.1]} 38... Kg8 {[%clk 0:00:09.2]} 39. Be6+
{[%clk 0:00:20.4]} 1-0

[Event "*** Titled Tuesday Blitz"]
[Site "Chess.com"]
[Date "2020.04.21"]
[Round "1"]
[White "GMBenjaminBok"]
[Black "fusaran"]
[Result "1-0"]
[WhiteElo "2870"]
[BlackElo "2452"]
[TimeControl "180+1"]
[EndTime "10:07:32 PDT"]
[Termination "GMBenjaminBok won on time"]

1. c4 {[%clk 0:03:00.9]} 1... Nf6 {[%clk 0:02:59.8]} 2. g3 {[%clk 0:03:00.8]}
2... c6 {[%clk 0:03:00.1]} 3. Bg2 {[%clk 0:03:01]} 3... d5 {[%clk 0:03:00.9]} 4.
Nf3 {[%clk 0:03:01.6]} 4... Bg4 {[%clk 0:03:00.4]} 5. Ne5 {[%clk 0:02:59.9]}
5... Be6 {[%clk 0:03:00.4]} 6. cxd5 {[%clk 0:02:59.6]} 6... Bxd5 {[%clk
0:03:01.3]} 7. Nf3 {[%clk 0:02:59.8]} 7... c5 {[%clk 0:03:01.9]} 8. Nc3 {[%clk
0:02:58.1]} 8... Bc6 {[%clk 0:03:02.2]} 9. O-O {[%clk 0:02:58.5]} 9... e6 {[%clk
0:03:02.2]} 10. Qc2 {[%clk 0:02:57.8]} 10... Be7 {[%clk 0:03:02.4]} 11. Rd1
{[%clk 0:02:54.5]} 11... b5 {[%clk 0:02:51.6]} 12. d4 {[%clk 0:02:51.8]} 12...
Qb6 {[%clk 0:02:51.5]} 13. e4 {[%clk 0:02:01.6]} 13... Qb7 {[%clk 0:02:26.4]}
14. d5 {[%clk 0:01:57.7]} 14... Bd7 {[%clk 0:01:48.7]} 15. d6 {[%clk 0:01:52.5]}
15... Bd8 {[%clk 0:01:47.6]} 16. e5 {[%clk 0:01:51.5]} 16... Nd5 {[%clk
0:01:44.3]} 17. Nxd5 {[%clk 0:01:50.1]} 17... exd5 {[%clk 0:01:43.1]} 18. Qxc5
{[%clk 0:01:49]} 18... Bb6 {[%clk 0:01:35.6]} 19. Qxd5 {[%clk 0:01:48.3]} 19...
Bc6 {[%clk 0:01:34.2]} 20. Qd3 {[%clk 0:01:45.7]} 20... Nd7 {[%clk 0:01:30.4]}
21. Bf4 {[%clk 0:01:39.1]} 21... Nc5 {[%clk 0:01:20.8]} 22. Qe2 {[%clk
0:01:33.7]} 22... Ne6 {[%clk 0:01:11.5]} 23. Be3 {[%clk 0:01:30.5]} 23... O-O
{[%clk 0:00:58.2]} 24. Ne1 {[%clk 0:01:16.1]} 24... Rfe8 {[%clk 0:00:36.3]} 25.
Bxc6 {[%clk 0:01:12.9]} 25... Qxc6 {[%clk 0:00:34.8]} 26. Rac1 {[%clk
0:01:13.6]} 26... Qb7 {[%clk 0:00:33.7]} 27. Qf3 {[%clk 0:01:06.4]} 27... Qa6
{[%clk 0:00:29.2]} 28. a3 {[%clk 0:01:03.4]} 28... Rec8 {[%clk 0:00:18.2]} 29.
Nd3 {[%clk 0:01:01.2]} 29... Qa4 {[%clk 0:00:15.3]} 30. Bxb6 {[%clk 0:00:45]}
30... axb6 {[%clk 0:00:11.2]} 31. Nb4 {[%clk 0:00:39.2]} 31... Rxc1 {[%clk
0:00:04.6]} 32. Rxc1 {[%clk 0:00:38.4]} 32... Nd4 {[%clk 0:00:04]} 33. Qe4
{[%clk 0:00:31.8]} 33... Ne6 {[%clk 0:00:02.5]} 34. Kg2 {[%clk 0:00:19.9]} 34...
Rd8 {[%clk 0:00:02.9]} 35. h4 {[%clk 0:00:15.6]} 35... Qb3 {[%clk 0:00:03.3]}
36. Qe2 {[%clk 0:00:11.2]} 36... Nc5 {[%clk 0:00:03.4]} 37. Nc6 {[%clk
0:00:08.3]} 37... Re8 {[%clk 0:00:03.1]} 38. Qf3 {[%clk 0:00:05]} 1-0

[Event "*** Titled Tuesday Blitz"]
[Site "Chess.com"]
[Date "2020.04.21"]
[Round "1"]
[White "El_ultimo_Pablo"]
[Black "dalmatinac101"]
[Result "0-1"]
[WhiteElo "2430"]
[BlackElo "2808"]
[TimeControl "180+1"]
[EndTime "10:07:33 PDT"]
[Termination "dalmatinac101 won by resignation"]

1. d4 {[%clk 0:03:00.9]} 1... Nf6 {[%clk 0:02:59.8]} 2. c4 {[%clk 0:03:00.4]}
2... g6 {[%clk 0:03:00.1]} 3. Nc3 {[%clk 0:03:00]} 3... Bg7 {[%clk 0:03:00.7]}
4. e4 {[%clk 0:03:00.1]} 4... d6 {[%clk 0:03:01.3]} 5. Nf3 {[%clk 0:03:00.4]}
5... O-O {[%clk 0:03:01.7]} 6. Be2 {[%clk 0:03:01]} 6... e5 {[%clk 0:03:02.3]}
7. O-O {[%clk 0:03:01.5]} 7... Nc6 {[%clk 0:03:02.6]} 8. dxe5 {[%clk 0:03:01.6]}
8... Nxe5 {[%clk 0:03:01.6]} 9. Nxe5 {[%clk 0:03:00.9]} 9... dxe5 {[%clk
0:03:02.5]} 10. Qxd8 {[%clk 0:03:01.2]} 10... Rxd8 {[%clk 0:03:03.1]} 11. Bg5
{[%clk 0:03:01]} 11... c6 {[%clk 0:03:01.9]} 12. Rfd1 {[%clk 0:02:58.6]} 12...
Be6 {[%clk 0:03:01.9]} 13. b3 {[%clk 0:02:58.5]} 13... h6 {[%clk 0:03:01.4]} 14.
Be3 {[%clk 0:02:54.6]} 14... Nd7 {[%clk 0:02:55.2]} 15. f3 {[%clk 0:02:25.8]}
15... Bf8 {[%clk 0:02:53.2]} 16. Rac1 {[%clk 0:02:23.8]} 16... f5 {[%clk
0:02:30.6]} 17. Kf1 {[%clk 0:02:16.9]} 17... a5 {[%clk 0:02:23.2]} 18. exf5
{[%clk 0:01:57.4]} 18... gxf5 {[%clk 0:02:23.1]} 19. Na4 {[%clk 0:01:53.1]}
19... f4 {[%clk 0:01:44]} 20. Bf2 {[%clk 0:01:51.8]} 20... Ba3 {[%clk
0:01:37.1]} 21. Rc3 {[%clk 0:01:03.9]} 21... Bb4 {[%clk 0:01:35.7]} 22. Rcc1
{[%clk 0:00:56.9]} 22... Kf7 {[%clk 0:01:28.2]} 23. Nb6 {[%clk 0:00:53.4]} 23...
Nxb6 {[%clk 0:01:28.1]} 24. Bxb6 {[%clk 0:00:54.3]} 24... Rxd1+ {[%clk
0:01:27.4]} 25. Bxd1 {[%clk 0:00:40.2]} 25... h5 {[%clk 0:01:17.6]} 26. Bc2
{[%clk 0:00:35.3]} 26... a4 {[%clk 0:01:14.5]} 27. Rd1 {[%clk 0:00:34.6]} 27...
axb3 {[%clk 0:01:13.8]} 28. Bxb3 {[%clk 0:00:35.5]} 28... Ke7 {[%clk 0:01:01.4]}
29. Bc7 {[%clk 0:00:34.9]} 29... Bc3 {[%clk 0:00:52.5]} 30. Bd6+ {[%clk
0:00:34.8]} 30... Kf7 {[%clk 0:00:52.5]} 31. Bc7 {[%clk 0:00:33.5]} 31... Bd4
{[%clk 0:00:44.9]} 32. Bd6 {[%clk 0:00:29.7]} 32... h4 {[%clk 0:00:43.4]} 33. h3
{[%clk 0:00:28.8]} 33... c5 {[%clk 0:00:37.3]} 34. Bc7 {[%clk 0:00:23.6]} 34...
Bf5 {[%clk 0:00:30.8]} 35. Ke2 {[%clk 0:00:20.4]} 35... Ke6 {[%clk 0:00:30]} 36.
a4 {[%clk 0:00:15.2]} 36... Rg8 {[%clk 0:00:11.6]} 37. Kf1 {[%clk 0:00:14.6]}
37... Rg3 {[%clk 0:00:11.4]} 38. a5 {[%clk 0:00:12.2]} 38... Bxh3 {[%clk
0:00:11.4]} 39. gxh3 {[%clk 0:00:11.4]} 39... Rxf3+ {[%clk 0:00:11.8]} 40. Ke2
{[%clk 0:00:11.7]} 40... Rxb3 {[%clk 0:00:12.1]} 41. Rd2 {[%clk 0:00:11.5]}
41... f3+ {[%clk 0:00:11.8]} 42. Kd1 {[%clk 0:00:09.3]} 0-1